bitfinex-derivatives/quotes_ETHF0:USTF0_20250908
["timestamp","ask_amount","ask_price","bid_price","bid_amount"]
[1757332933535,0.234,4322.1,4322.0,1.5515]
[1757332937133,0.5973,4322.1,4322.0,1.5515]
[1757332937330,0.234,4322.1,4322.0,1.5515]
[1757332939633,0.234,4322.3,4322.0,4.8958]
[1757332939835,33.355,4323.1,4322.2,4.5572]
[1757332940032,33.355,4323.1,4323.0,1.5515]
[1757332940336,33.589,4323.1,4323.0,1.5515]
[1757332942126,34.5877,4323.1,4323.0,1.5515]
[1757332942337,34.5877,4323.1,4323.0,1.3494]
[1757332942530,34.9494,4323.1,4323.0,1.3494]
[1757332943034,0.725,4322.8,4322.7,3.5399]
[1757332943240,1.5944,4322.8,4322.7,4.1956]
[1757332943740,2.24412538,4322.8,4322.7,4.1956]
[1757332944138,2.24412538,4322.8,4322.7,4.5572]
[1757332945036,2.24415373,4322.8,4322.7,4.5572]
[1757332945239,0.2107,4322.5,4322.4,0.6557]
[1757332945433,1.92265328,4322.5,4322.4,1.3494]
[1757332945731,2.45485373,4322.5,4322.4,1.3494]
[1757332945938,2.24415373,4322.5,4322.4,1.3494]
[1757332946135,1.88245373,4322.5,4322.4,1.3494]
[1757332946336,2.24415373,4322.5,4322.4,1.3494]
[1757332946838,2.45485373,4322.5,4322.4,1.3494]
[1757332947733,2.45485373,4322.5,4322.4,0.3321]
[1757332947936,0.725,4322.3,4322.2,3.5399]
[1757332948143,2.01015373,4322.3,4322.2,0.3321]
[1757332948440,1.37475373,4322.3,4321.7,3.8635]
[1757332948641,1.3604,4321.8,4321.7,4.5572]
[1757332948841,2.24415373,4321.8,4321.7,4.5572]
[1757332949242,2.24415373,4321.8,4321.7,0.3321]
[1757332952942,2.24415373,4321.8,4321.7,0.9878]
[1757332953443,2.24415373,4321.8,4321.7,0.3321]
[1757332954445,1.3604,4321.3,4321.2,3.5399]
[1757332954642,2.24415373,4321.3,4321.2,3.5399]
[1757332955239,2.42535888,4321.3,4321.2,3.5399]
[1757332955441,2.42535888,4321.3,4321.2,4.1956]
[1757332957343,2.42535888,4321.3,4321.2,3.2078]
[1757332957946,2.42535888,4321.3,4321.2,3.9291]
[1757332959248,2.42535888,4321.3,4321.2,4.9704]
[1757332959550,2.42535888,4321.3,4321.2,5.6866]
[1757332963054,0.88375373,4321.3,4321.2,5.6866]
[1757332964651,0.88382274,4321.3,4321.2,5.6866]
[1757332967950,1.98662274,4321.3,4321.2,5.6866]
[1757332968147,2.69192274,4321.3,4321.2,5.6866]
[1757332968340,3.44092274,4321.3,4321.2,5.6866]
[1757332969851,3.44108838,4321.3,4321.2,3.9291]
[1757332970053,3.44108838,4321.3,4321.0,1.0413]
[1757332970253,2.5571,4321.1,4321.0,1.7626]
[1757332970444,3.20708838,4321.1,4321.0,1.7626]
[1757332971450,3.44108838,4321.1,4321.0,0.7213]
[1757332971852,3.44108838,4321.1,4321.0,1.7626]
[1757332972550,3.44108838,4321.1,4321.0,2.4788]
[1757332972751,3.44108838,4321.1,4321.0,0.7213]
[1757332972948,1.98678838,4321.1,4321.0,2.905]
[1757332973152,0.88398838,4321.1,4321.0,2.905]
[1757332977049,0.35162229,4321.1,4321.0,2.905]
[1757332977250,0.88512173,4321.1,4321.0,2.905]
[1757332978753,0.89621605,4321.1,4321.0,2.905]
[1757332980755,1.60746382,4321.1,4321.0,2.905]
[1757332981061,2.14096326,4321.1,4321.0,2.905]
[1757332981260,0.89621605,4321.1,4321.0,2.905]
[1757332982258,0.89671975,4321.1,4321.0,2.905]
[1757332982647,2.70481975,4321.1,4321.0,2.905]
[1757332982852,3.45381975,4321.1,4321.0,2.4788]
[1757332987858,0.89671975,4321.1,4321.0,2.9311]
[1757332990167,0.66271975,4321.1,4321.0,6.9311]
[1757332990367,0.5345039,4321.1,4321.0,6.35522999]
[1757332990663,0.234,4321.6,4321.0,6.35522999]
[1757332990870,1.3487,4321.6,4321.5,3.2078]
[1757332991266,0.234,4321.6,4321.5,3.2078]
[1757332992264,1.3487,4321.6,4321.5,3.2078]
[1757332994171,2.7609,4321.6,4321.5,3.2078]
[1757332994372,1.4122,4321.1,4321.0,3.2078]
[1757332994571,2.7609,4321.1,4321.0,3.2078]
[1757332995568,1.3487,4321.1,4321.0,3.2078]
[1757332995971,2.0367,4321.1,4321.0,3.2078]
[1757332996473,1.3487,4321.1,4321.0,3.2078]
[1757332999175,2.0367,4321.1,4321.0,3.2078]
[1757333001574,1.3487,4321.1,4321.0,3.2078]
[1757333002370,1.47164917,4321.1,4321.0,3.2078]
[1757333002570,1.99742888,4321.1,4321.0,3.2078]
[1757333002877,2.68542888,4321.1,4321.0,3.2078]
[1757333003178,1.99742888,4321.1,4321.0,3.2078]
[1757333003476,1.99743173,4321.1,4321.0,3.2078]
[1757333004579,2.68543173,4321.1,4321.0,3.2078]
[1757333005080,3.40963173,4321.1,4321.0,3.2078]
[1757333005976,3.28667971,4321.1,4321.0,3.2078]
[1757333007877,2.9569,4320.5,4320.4,3.2078]
[1757333008081,3.48267971,4320.5,4320.4,3.2078]
[1757333008283,3.60561639,4320.5,4320.4,3.2078]
[1757333008783,3.60561604,4320.5,4320.4,3.2078]
[1757333008981,3.60561039,4320.5,4320.4,3.2078]
[1757333009978,2.19341039,4320.5,4320.4,3.2078]
[1757333010578,2.07047971,4320.5,4320.4,3.2078]
[1757333011084,1.64047971,4320.5,4320.4,3.2078]
[1757333011281,0.52577971,4320.5,4320.4,3.2078]
[1757333011680,1.64047971,4320.5,4320.4,3.2078]
[1757333011884,2.07047971,4320.5,4320.4,3.4418]
[1757333012189,0.52577971,4320.5,4320.4,3.4418]
[1757333012574,0.52577971,4320.5,4320.4,7.4418]
[1757333012777,1.3487,4320.8,4320.4,7.4418]
[1757333012980,0.53139693,4320.7,4320.4,3.4418]
[1757333013175,1.3487,4320.8,4320.4,3.4418]
[1757333013482,0.53140819,4320.7,4320.4,3.4418]
[1757333013675,0.234,4320.8,4320.4,3.4418]
[1757333013989,0.53142014,4320.7,4320.4,3.4418]
[1757333014186,0.234,4320.8,4320.4,3.4418]
[1757333014387,0.53142948,4320.7,4320.4,3.4418]
[1757333014586,0.234,4320.8,4320.4,3.4418]
[1757333014780,0.53142948,4320.7,4320.4,3.4418]
[1757333014981,0.234,4320.8,4320.4,3.4418]
[1757333015181,0.5314295,4320.7,4320.4,3.4418]
[1757333015382,0.43,4321.0,4320.4,3.4418]
[1757333015585,1.5186,4321.0,4320.9,3.2078]
[1757333015887,2.72295767,4321.0,4320.9,3.2078]
[1757333016088,2.84586707,4321.0,4320.9,3.2078]
[1757333017282,2.84587355,4321.0,4320.9,3.2078]
[1757333018785,2.72295767,4321.0,4320.9,3.2078]
[1757333019887,2.84584423,4321.0,4320.9,3.2078]
[1757333020290,3.56664423,4321.0,4320.9,3.2078]
[1757333021386,3.80064423,4321.0,4320.9,3.2078]
[1757333022988,3.80064423,4321.0,4320.4,3.2078]
[1757333022989,7.80064423,4321.0,4320.4,3.2078]
[1757333023185,1.52,4320.5,4320.4,3.2078]
[1757333023390,2.84724423,4320.5,4320.4,3.2078]
[1757333023789,3.56804423,4320.5,4320.4,3.2078]
[1757333024792,3.56806718,4320.5,4320.4,3.2078]
[1757333025393,7.56806718,4320.5,4320.0,0.0034723]
[1757333025589,1.3937,4320.1,4320.0,0.0034723]
[1757333025785,3.37066718,4320.1,4320.0,0.0034723]
[1757333029290,3.37066718,4320.1,4319.9,3.2078]
[1757333029291,1.8251,4320.0,4319.9,3.2078]
[1757333029493,3.56806718,4320.0,4319.9,3.2078]
[1757333031798,3.56806718,4320.0,4319.2,1.3432]
[1757333031799,2.4823,4319.4,4319.3,3.2078]
[1757333032000,3.24775767,4319.4,4319.3,3.2078]
[1757333035098,2.7163,4319.4,4319.3,3.2078]
[1757333035294,1.3226,4319.4,4319.3,3.2078]
[1757333036597,0.234,4319.4,4319.3,3.2078]
[1757333036801,1.0886,4319.7,4319.3,7.67332]
[1757333037003,0.52973168,4319.6,4319.3,3.67332]
[1757333037202,1.0886,4319.7,4319.3,3.67332]
[1757333037600,0.234,4319.8,4319.3,3.67332]
[1757333037801,1.0886,4319.6,4319.3,3.4418]
[1757333038506,0.234,4319.8,4319.3,3.4418]
[1757333038694,1.0886,4319.6,4319.3,3.4418]
[1757333038896,1.0886,4319.7,4319.3,3.4418]
[1757333039302,0.6729,4319.7,4319.3,3.4418]
[1757333039502,1.0886,4319.7,4319.3,3.4418]
[1757333039908,0.9069,4319.8,4319.3,3.4418]
[1757333040206,0.52970887,4319.7,4319.3,3.4418]
[1757333040407,1.1043,4319.5,4319.3,3.2078]
[1757333040602,1.7615,4319.4,4319.3,3.4418]
[1757333041307,2.4823,4319.4,4319.3,3.2078]
[1757333041508,2.4823,4319.4,4319.3,3.4418]
[1757333042109,2.7163,4319.4,4319.3,3.2078]
[1757333046713,1.3226,4319.4,4319.3,3.2078]
[1757333050513,2.7367,4319.4,4319.3,3.2078]
[1757333052216,3.26763361,4319.4,4319.3,3.2078]
[1757333055423,3.39060246,4319.4,4319.3,3.2078]
[1757333055623,3.26763361,4319.4,4319.3,3.2078]
[1757333055818,2.56083361,4319.4,4319.3,3.2078]
[1757333061330,1.85353361,4319.4,4319.3,3.2078]
[1757333061828,2.56083361,4319.4,4319.3,3.2078]
[1757333062529,3.26763361,4319.4,4319.3,3.2078]
[1757333062726,1.85353361,4319.4,4319.3,3.2078]
[1757333062928,2.56083361,4319.4,4319.3,3.2078]
[1757333063229,3.26763361,4319.4,4319.3,3.2078]
[1757333065027,2.56083361,4319.4,4319.3,3.2078]
[1757333065629,1.61953361,4319.4,4319.3,3.4418]
[1757333065936,1.0296,4319.9,4319.3,7.4418]
[1757333066129,1.0296,4319.9,4319.8,3.2078]
[1757333066527,1.7369,4319.9,4319.8,3.2078]
[1757333066829,2.4437,4319.9,4319.8,3.2078]
[1757333067029,2.97526113,4319.9,4319.8,3.2078]
[1757333068226,3.20907688,4319.9,4319.8,3.2078]
[1757333068433,3.33192216,4319.9,4319.8,3.2078]
[1757333071433,1.4141,4319.2,4319.1,3.2078]
[1757333071738,2.97507688,4319.2,4319.1,3.2078]
[1757333074340,1.56097688,4319.2,4319.1,3.2078]
[1757333075842,2.26827688,4319.2,4319.1,3.2078]
[1757333080747,1.7369,4319.2,4319.1,3.2078]
[1757333084543,1.0296,4319.2,4319.1,3.2078]
[1757333088443,1.6817,4319.2,4319.1,3.2078]
[1757333091645,2.3667,4319.2,4319.1,3.2078]
[1757333098056,1.0296,4319.2,4319.1,3.2078]
[1757333098255,1.0689,4319.4,4319.1,7.2078]
[1757333098448,1.5016,4319.5,4319.2,0.234]
[1757333098642,0.4327,4319.5,4319.2,0.46552]
[1757333099048,1.0689,4319.4,4319.2,0.46552]
[1757333099353,1.721,4319.4,4319.3,0.234]
[1757333099550,1.721,4319.4,4319.2,0.23152]
[1757333099754,1.721,4319.4,4319.3,0.234]
[1757333100848,1.721,4319.4,4319.1,3.2078]
[1757333100849,1.0689,4319.3,4319.1,3.2078]
[1757333101054,2.406,4319.3,4319.2,0.234]
[1757333102556,1.3371,4319.3,4319.2,0.234]
[1757333102857,2.406,4319.3,4319.2,0.234]
[1757333103251,1.0689,4319.2,4319.1,3.2078]
[1757333103552,2.406,4319.2,4319.1,3.4418]
[1757333104661,2.406,4319.2,4319.1,3.2078]
[1757333104862,2.406,4319.2,4319.1,3.4418]
[1757333109664,1.721,4319.2,4319.1,3.4418]
[1757333110159,2.3859,4319.2,4319.1,3.4418]
[1757333115768,2.3859,4319.2,4319.1,3.2078]
[1757333116067,2.3859,4319.2,4319.1,3.4418]
[1757333116469,2.3859,4319.2,4319.1,3.2078]
[1757333120468,6.61743,4319.2,4319.1,3.2078]
[1757333120769,2.3886,4319.1,4319.0,1.9456]
[1757333120971,3.52013907,4319.1,4319.0,1.9456]
[1757333121179,3.28860907,4319.1,4319.0,1.9456]
[1757333121385,3.52013907,4319.1,4319.0,1.9456]
[1757333121592,3.28860907,4319.1,4319.0,1.9456]
[1757333121779,1.37,4318.7,4318.6,3.2078]
[1757333121981,3.16531606,4318.7,4318.6,3.2078]
[1757333122183,2.6226,4318.7,4318.6,3.2078]
[1757333126292,3.16450058,4318.7,4318.6,3.2078]
[1757333128287,2.6226,4318.7,4318.6,3.2078]
[1757333128895,3.16418138,4318.7,4318.6,3.2078]
[1757333129093,3.16418138,4318.7,4318.1,3.2078]
[1757333129094,2.3886,4318.2,4318.1,3.2078]
[1757333129388,2.6226,4318.2,4318.1,3.8964]
[1757333133589,2.6226,4318.2,4318.1,4.5689]
[1757333133793,2.6226,4318.2,4318.1,5.484]
[1757333134000,1.4089,4319.0,4318.2,0.9151]
[1757333134196,1.0186,4319.0,4318.9,5.484]
[1757333134798,1.2526,4319.2,4319.1,1.3611]
[1757333134997,1.2526,4319.2,4319.1,2.2762]
[1757333135193,0.4327,4319.5,4319.1,2.2762]
[1757333135194,1.4513,4319.5,4319.1,2.2762]
[1757333135390,1.2526,4319.5,4319.4,5.4816]
[1757333136199,1.9121,4319.5,4319.4,5.4816]
[1757333136603,2.3159,4319.5,4319.4,5.4816]
[1757333138401,2.951,4319.5,4319.1,0.234]
[1757333138601,1.2946,4318.9,4318.8,4.562]
[1757333138802,2.332,4318.9,4318.8,4.796]
[1757333139399,2.332,4318.9,4318.8,5.4747]
[1757333142106,2.332,4318.9,4318.8,4.562]
[1757333145411,2.332,4318.9,4318.8,5.4747]
[1757333145799,1.6969,4318.9,4318.8,5.4747]
[1757333145998,1.0374,4318.9,4318.8,5.4747]
[1757333146204,1.0374,4318.9,4318.8,5.7087]
[1757333146412,0.234,4319.0,4318.8,5.7087]
[1757333146614,1.2714,4319.0,4318.8,4.796]
[1757333146806,1.2714,4319.0,4318.9,2.2669]
[1757333147810,1.9309,4319.0,4318.9,5.4747]
[1757333148110,2.9698,4319.0,4318.9,4.796]
[1757333148511,2.9698,4319.0,4318.9,5.7087]
[1757333149414,1.2714,4319.0,4318.9,5.7087]
[1757333149915,1.0374,4319.0,4318.9,5.7087]
[1757333150215,1.0374,4319.3,4318.9,4.796]
[1757333150409,1.0374,4319.3,4319.2,2.2669]
[1757333150609,2.23886653,4319.3,4319.2,2.2669]
[1757333150907,1.6969,4319.3,4319.2,2.2669]
[1757333152714,2.332,4319.3,4319.2,2.2669]
[1757333154219,2.332,4319.3,4319.2,1.3542]
[1757333154517,2.7358,4319.0,4318.9,4.1286]
[1757333154705,2.7358,4319.0,4318.9,5.7087]
[1757333155113,2.7358,4319.0,4318.9,5.4747]
[1757333155416,2.7358,4319.0,4318.9,3.8946]
[1757333159216,2.7358,4319.0,4318.9,4.562]
[1757333160718,3.27781963,4319.0,4318.9,4.562]
[1757333161314,3.27781963,4319.0,4318.9,3.2078]
[1757333161617,7.50935963,4319.0,4318.9,3.2078]
[1757333161814,2.332,4318.3,4318.2,3.8946]
[1757333162014,2.332,4318.3,4318.2,4.562]
[1757333162213,2.332,4318.3,4318.2,5.4747]
[1757333162418,2.332,4318.3,4318.2,4.562]
[1757333162613,2.332,4318.3,4318.2,5.4747]
[1757333164423,2.332,4318.3,4318.2,4.796]
[1757333164623,2.88033046,4318.3,4318.2,4.796]
[1757333165422,2.332,4318.3,4318.2,4.796]
[1757333165721,2.332,4318.3,4318.2,4.562]
[1757333166218,2.8802478,4318.3,4318.2,4.562]
[1757333167416,2.8802478,4318.3,4318.2,3.8946]
[1757333168017,2.8802478,4318.3,4318.2,4.5687]
[1757333170727,2.332,4318.3,4318.2,4.5687]
[1757333172426,2.88024486,4318.3,4318.2,3.2078]
[1757333172825,3.00301743,4318.3,4318.2,3.2078]
[1757333173221,1.58564486,4318.3,4318.2,5.4311]
[1757333173421,0.54824486,4318.3,4318.2,5.6651]
[1757333173627,0.234,4318.4,4318.3,0.8766]
[1757333173828,0.234,4318.4,4318.3,2.2233]
[1757333174528,0.234,4318.7,4318.3,1.3467]
[1757333174722,1.48415174,4318.6,4318.5,2.2233]
[1757333176227,1.6162,4318.6,4318.5,2.2233]
[1757333177529,2.16454232,4318.6,4318.5,2.2233]
[1757333178433,0.54834232,4318.6,4318.5,2.5366]
[1757333178734,0.234,4318.7,4318.6,0.8766]
[1757333178936,2.5281,4319.3,4319.2,1.3467]
[1757333179130,3.07657744,4319.3,4319.2,1.3467]
[1757333180333,3.07657744,4319.3,4319.2,0.6726]
[1757333180827,3.07657744,4319.3,4318.9,3.2078]
[1757333181025,2.712,4319.0,4318.9,3.8804]
[1757333181226,3.26047744,4319.0,4318.9,4.5545]
[1757333181830,3.26047744,4319.0,4318.9,5.4311]
[1757333182532,2.58257744,4319.0,4318.9,5.4311]
[1757333182935,1.48437744,4319.0,4318.9,5.4311]
[1757333185130,0.54847744,4319.0,4318.9,5.4311]
[1757333185433,0.54847744,4319.2,4318.9,5.4311]
[1757333185737,0.9359,4319.1,4319.0,2.2233]
[1757333185933,1.48437744,4319.1,4319.0,2.2233]
[1757333186233,2.16467744,4319.1,4319.0,2.2233]
[1757333186439,2.712,4319.0,4318.9,3.2078]
[1757333186736,3.26047744,4319.0,4318.9,3.2078]
[1757333186931,3.26047744,4319.0,4318.9,3.8804]
[1757333187532,3.26047744,4319.0,4318.9,3.2078]
[1757333187935,3.38324144,4319.0,4318.9,3.2078]
[1757333188336,3.61724144,4319.0,4318.9,3.2078]
[1757333189638,3.61724144,4319.0,4318.4,3.2078]
[1757333189835,2.712,4318.5,4318.4,3.8804]
[1757333190433,2.712,4318.5,4318.4,3.2078]
[1757333190739,3.26068824,4318.5,4318.4,3.2078]
[1757333191038,3.26068824,4318.5,4318.4,3.8804]
[1757333194137,3.49468824,4318.5,4318.4,3.2078]
[1757333195136,0.9359,4318.4,4318.2,1.6448]
[1757333195341,2.88218824,4318.3,4318.2,1.6448]
[1757333195839,6.14088824,4318.3,4317.9,1.0114]
[1757333196040,0.0113,4317.2,4317.1,0.94583805]
[1757333196340,3.4551,4317.2,4317.1,0.9254]
[1757333196539,4.35798105,4317.2,4317.1,0.9254]
[1757333196840,4.12365105,4317.2,4317.1,1.5804]
[1757333197740,4.12365105,4317.2,4317.1,0.9254]
[1757333198141,4.12365105,4317.2,4317.1,1.5804]
[1757333202342,4.00108824,4317.2,4317.1,1.5804]
[1757333202544,4.18283895,4317.2,4317.1,1.5804]
[1757333204446,3.63415071,4317.2,4317.1,1.5804]
[1757333205348,3.4524,4317.2,4317.1,1.5804]
[1757333205539,3.6339915,4317.2,4317.1,1.5804]
[1757333205745,3.6366915,4317.2,4317.1,1.5804]
[1757333206047,3.66357554,4317.2,4317.1,1.5804]
[1757333206443,3.66087554,4317.2,4317.1,1.5804]
[1757333207846,3.66087554,4317.2,4317.0,0.9254]
[1757333207847,0.0113,4317.1,4317.0,0.9254]
[1757333208048,0.21977554,4317.1,4317.0,0.9254]
[1757333209650,2.2221,4316.6,4316.5,1.03]
[1757333209849,2.4571,4316.6,4316.5,1.03]
[1757333210038,2.4571,4316.6,4316.5,1.6427]
[1757333210649,1.69011168,4316.6,4316.5,1.6427]
[1757333210849,2.2221,4316.4,4316.3,2.5413]
[1757333211048,1.4818,4316.4,4316.3,2.5413]
[1757333211649,1.4818,4316.4,4316.3,2.1931]
[1757333214343,2.4571,4316.4,4316.3,2.1931]
[1757333214544,2.5729,4316.4,4316.3,2.1931]
[1757333214745,2.5729,4316.4,4316.1,3.2078]
[1757333215046,2.2221,4316.2,4316.1,4.1332]
[1757333215247,2.66545049,4316.2,4316.1,3.2078]
[1757333215754,2.66545049,4316.2,4316.1,4.1332]
[1757333216450,3.24736365,4316.2,4316.1,4.1332]
[1757333216747,3.24736365,4316.2,4316.1,5.4009]
[1757333216953,2.27206365,4316.2,4316.1,5.4009]
[1757333217141,3.24736365,4316.2,4316.1,5.4009]
[1757333217552,3.24736365,4316.2,4316.1,4.7882]
[1757333218355,3.24736365,4316.2,4316.1,1.5804]
[1757333219453,0.79026365,4316.2,4316.1,2.1931]
[1757333219752,1.02526365,4316.2,4316.1,2.1931]
[1757333220048,2.27206365,4316.2,4316.1,2.1931]
[1757333220446,1.02526365,4316.2,4316.1,2.1931]
[1757333220950,0.44335049,4316.2,4316.1,2.1931]
[1757333221250,2.66545049,4316.2,4316.1,0.9254]
[1757333221453,3.24787422,4316.2,4315.6,0.9254]
[1757333221659,2.2221,4315.7,4315.6,2.1931]
[1757333221851,2.4571,4315.7,4315.6,2.1931]
[1757333222052,2.4571,4315.7,4315.6,0.9254]
[1757333222249,2.4571,4315.7,4315.1,4.0949]
[1757333222250,1.5885,4315.2,4315.1,4.0949]
[1757333222454,2.0331175,4315.2,4315.1,4.0949]
[1757333224163,2.0331175,4315.2,4315.1,5.0203]
[1757333224558,3.24989267,4315.2,4315.1,5.0203]
[1757333225957,3.24989267,4315.2,4315.1,3.4822]
[1757333226754,3.24989267,4315.2,4315.1,4.5068]
[1757333227752,3.24989267,4315.2,4315.1,1.6796]
[1757333227954,3.24989267,4315.2,4314.7,4.8062]
[1757333227955,1.2891,4314.8,4314.7,1.5984]
[1757333228258,3.33359267,4314.8,4314.7,3.9279]
[1757333231860,3.44939267,4314.8,4314.7,3.9279]
[1757333232457,7.44939267,4314.8,4314.7,1.5984]
[1757333232656,7.68115268,4314.8,4314.7,1.5984]
[1757333232953,1.2891,4314.0,4313.9,6.5045]
[1757333233157,1.2891,4314.0,4313.9,3.2967]
[1757333233158,3.1166175,4314.0,4313.9,3.2967]
[1757333233351,3.69883311,4314.0,4313.9,3.2967]
[1757333235763,3.69883311,4314.0,4313.9,0.6311]
[1757333236355,2.3058,4313.3,4313.2,2.3295]
[1757333236556,2.7504175,4313.3,4313.2,2.3295]
[1757333240662,3.33191195,4313.3,4313.2,2.3295]
[1757333241066,0.79011195,4313.3,4313.2,2.3295]
[1757333241366,1.61053875,4314.5,4313.2,6.79734]
[1757333241570,2.68641003,4314.4,4314.3,2.3295]
[1757333241767,3.33161003,4314.4,4313.8,1.0246]
[1757333242071,2.3058,4314.2,4314.1,1.3049]
[1757333242274,3.12334969,4314.2,4314.1,2.3295]
[1757333243669,3.12334969,4314.2,4314.1,0.6311]
[1757333244071,3.12334969,4314.2,4313.8,1.0246]
[1757333244072,1.2891,4313.9,4313.8,1.6557]
[1757333244271,3.12334969,4313.9,4313.2,3.2078]
[1757333244459,2.88734969,4313.8,4313.7,0.6311]
[1757333245071,2.88734969,4313.8,4313.7,1.6557]
[1757333247672,1.2891,4313.3,4313.2,5.5373]
[1757333247881,2.5418,4313.3,4313.2,5.5373]
[1757333248677,3.24011835,4313.3,4313.2,5.5373]
[1757333249075,0.9958,4313.3,4313.2,5.5373]
[1757333249676,1.57836074,4313.3,4313.2,5.5373]
[1757333251271,2.59506074,4313.3,4313.2,5.5373]
[1757333251684,3.24026074,4313.3,4313.2,5.5373]
[1757333252575,3.24026074,4313.3,4313.2,4.5127]
[1757333253183,3.24026074,4313.3,4312.9,1.0246]
[1757333253382,2.672,4313.0,4312.9,1.6557]
[1757333253585,3.69184162,4313.0,4312.9,1.6557]
[1757333253780,3.69184162,4313.0,4312.9,2.3295]
[1757333254082,0.43728088,4313.0,4312.9,2.3295]
[1757333256086,1.36628088,4313.0,4312.9,2.3295]
[1757333256290,2.62517421,4313.0,4312.9,2.3295]
[1757333257382,3.65807421,4313.0,4312.9,2.3295]
[1757333260481,3.26037421,4313.0,4312.9,2.3295]
[1757333262486,3.65807421,4313.0,4312.9,2.3295]
[1757333263087,3.26037421,4313.0,4312.9,2.3295]
[1757333263788,2.62517421,4313.0,4312.9,2.3295]
[1757333266683,1.01447805,4313.0,4312.9,2.3295]
[1757333267089,1.01449478,4313.0,4312.9,2.3295]
[1757333268390,0.43105223,4313.0,4312.9,2.3295]
[1757333271795,0.54695223,4313.0,4312.9,2.3295]
[1757333271993,2.15125223,4313.0,4312.9,2.3295]
[1757333273295,2.73596476,4313.0,4312.9,2.3295]
[1757333274001,3.76886476,4313.0,4312.9,0.6311]
[1757333274395,3.76886476,4313.0,4312.8,0.17621758]
[1757333274595,3.02026476,4312.9,4312.8,0.17621758]
[1757333277198,7.02026476,4312.9,4312.8,0.17621758]
[1757333283904,3.13616476,4312.9,4312.8,0.17621758]
[1757333287406,3.13599952,4312.9,4312.8,0.17621758]
[1757333289305,3.13599952,4312.9,4312.0,2.2009]
[1757333289306,1.3127,4312.1,4312.0,1.02938242]
[1757333289602,1.3127,4312.1,4312.0,0.85316484]
[1757333289603,3.23700052,4312.1,4312.0,0.85316484]
[1757333289808,3.23700052,4312.1,4312.0,1.52436484]
[1757333290005,3.23700052,4312.1,4312.0,2.51966484]
[1757333290509,3.23681866,4312.1,4312.0,3.15296484]
[1757333293713,3.23681866,4312.1,4312.0,2.2998]
[1757333293905,3.23681866,4312.1,4312.0,1.3045]
[1757333294112,2.2223,4311.7,4311.6,2.2998]
[1757333294313,2.4573,4311.7,4311.6,2.2998]
[1757333294517,1.7789,4311.7,4311.6,2.2998]
[1757333295910,3.23608257,4311.7,4311.6,2.2998]
[1757333296715,1.01378257,4311.7,4311.6,2.2998]
[1757333296912,3.21127645,4312.5,4311.6,5.3045]
[1757333297117,0.235,4312.4,4312.3,2.2998]
[1757333298519,0.43068502,4312.4,4312.3,2.2998]
[1757333298913,1.34028502,4312.4,4312.3,2.2998]
[1757333299313,2.65298502,4312.4,4312.3,2.2998]
[1757333299610,3.23643794,4312.4,4312.0,0.9953]
[1757333299811,1.3127,4312.1,4312.0,1.6665]
[1757333300006,2.4573,4312.1,4312.0,1.6665]
[1757333300212,2.4573,4312.1,4312.0,2.2998]
[1757333301016,0.235,4312.1,4312.0,2.6998]
[1757333301220,0.19576669,4312.1,4312.0,2.6998]
[1757333301411,0.43076669,4312.1,4312.0,2.6998]
[1757333303609,1.97466669,4312.1,4312.0,2.6998]
[1757333303813,1.97466669,4312.1,4312.0,2.2998]
[1757333304218,2.55881436,4312.1,4312.0,2.2998]
[1757333304827,3.23721436,4312.1,4312.0,2.2998]
[1757333305420,3.23721436,4312.1,4312.0,0.6712]
[1757333307018,2.2223,4311.8,4311.7,1.6665]
[1757333307224,3.35311436,4311.8,4311.7,1.6665]
[1757333307720,3.35311436,4311.8,4311.7,0.6712]
[1757333307924,2.2223,4311.7,4311.6,0.6712]
[1757333308221,2.2223,4311.7,4311.6,2.2998]
[1757333308222,3.00221436,4311.7,4311.6,2.2998]
[1757333311417,3.00221436,4311.7,4311.6,0.6712]
[1757333311625,3.00221436,4311.7,4311.6,1.6665]
[1757333311823,3.00221436,4311.7,4311.6,2.2998]
[1757333313426,3.00221436,4311.7,4311.6,0.6712]
[1757333314121,3.00221436,4311.7,4311.6,1.6665]
[1757333314522,3.00221436,4311.7,4311.6,0.6712]
[1757333315728,3.00221436,4311.7,4311.6,2.2911]
[1757333316417,0.3639,4311.5,4311.4,3.4336]
[1757333316621,2.98556669,4311.5,4311.4,3.4336]
[1757333316927,3.56971436,4311.5,4311.4,3.4336]
[1757333317320,4.81405311,4311.5,4311.4,3.4336]
[1757333318722,8.81405311,4311.5,4310.6,0.9724]
[1757333318926,2.1909,4310.7,4310.6,0.41482486]
[1757333319127,3.20581436,4310.7,4310.6,0.41482486]
[1757333319426,3.20581436,4310.7,4310.6,1.06232486]
[1757333320926,3.20581436,4310.7,4310.6,2.03472486]
[1757333321523,3.20581436,4310.7,4310.6,1.38722486]
[1757333323322,3.20552161,4310.7,4310.6,1.38722486]
[1757333323734,3.20552161,4310.7,4310.6,1.5753]
[1757333323928,3.20552161,4310.7,4310.6,2.2228]
[1757333325330,2.62137394,4310.7,4310.6,2.2228]
[1757333326422,0.43047394,4310.7,4310.6,2.2228]
[1757333331334,0.54637394,4310.7,4310.6,2.2228]
[1757333333128,0.31137394,4310.7,4310.6,2.2228]
[1757333333337,0.1159,4310.7,4310.6,6.45478]
[1757333333535,3.4428,4311.1,4311.0,0.3605]
[1757333333735,3.63848048,4311.1,4311.0,2.5833]
[1757333334034,0.43068048,4311.1,4311.0,2.5833]
[1757333334237,0.43074103,4311.1,4311.0,2.5833]
[1757333335632,0.3507,4311.5,4311.0,1.6109]
[1757333335935,0.3507,4311.5,4311.3,2.2228]
[1757333336129,0.235,4311.5,4311.4,0.9724]
[1757333336529,0.235,4311.5,4311.4,2.2228]
[1757333341235,0.81927202,4311.5,4311.4,2.2228]